fUSD/lending_fUSD_20250511
["ID","MTS","AMOUNT","RATE_DAILY","PERIOD"]
[360734639,1746957216456,-637.48,0.00019997,2]
[360734640,1746957216488,-637.48,0.00019997,2]
[360734641,1746957216521,-400.0,0.00019997,2]
[360734642,1746957216557,-400.0,0.00019997,2]
[360734643,1746957216590,-400.0,0.00019997,2]
[360734644,1746957216622,-400.0,0.00019997,2]
[360734645,1746957216656,-666.559909,0.00019997,2]
[360734646,1746957216687,-400.0,0.00019997,2]
[360734647,1746957216719,-400.0,0.00019997,2]
[360734648,1746957216751,-666.559909,0.00019997,2]
[360734649,1746957216786,-400.0,0.00019997,2]
[360734650,1746957216816,-400.0,0.00019997,2]
[360734651,1746957216852,-589.22,0.00019997,2]
[360734652,1746957216887,-400.0,0.00019997,2]
[360734653,1746957216919,-532.85,0.00019997,2]
[360734654,1746957216950,-400.0,0.00019997,2]
[360734655,1746957216984,-400.0,0.00019997,2]
[360734656,1746957217016,-400.0,0.00019997,2]
[360734657,1746957217047,-400.0,0.00019997,2]
[360734658,1746957217078,-617.82,0.00019997,2]
[360734659,1746957217270,-28887.7,0.00019997,2]
[360734660,1746957217306,-400.0,0.00019997,2]
[360734661,1746957217344,-768.15,0.00019997,2]
[360734662,1746957217378,-400.0,0.00019997,2]
[360734663,1746957217411,-174.6,0.00019997,2]
[360734664,1746957217447,-400.0,0.00019997,2]
[360734665,1746957217481,-400.0,0.00019997,2]
[360734666,1746957217515,-400.0,0.00019997,2]
[360734667,1746957217549,-903.0,0.00019997,2]
[360734668,1746957217581,-416.70218783,0.00019997,2]
[360734669,1746957217613,-400.0,0.00019997,2]
[360734670,1746957217651,-400.0,0.00019997,2]
[360734671,1746957217687,-400.0,0.00019997,2]
[360734672,1746957217721,-676.82,0.00019997,2]
[360734673,1746957217754,-745.16,0.00019997,2]
[360734674,1746957217789,-573.98,0.00019997,2]
[360734675,1746957217821,-573.98,0.00019997,2]
[360734676,1746957217855,-400.0,0.00019997,2]
[360734677,1746957217888,-596.81,0.00019997,2]
[360734678,1746957217921,-400.0,0.00019997,2]
[360734679,1746957217953,-400.0,0.00019997,2]
[360734680,1746957217984,-408.02,0.00019997,2]
[360734681,1746957218017,-408.02,0.00019997,2]
[360734682,1746957218050,-400.0,0.00019997,2]
[360734683,1746957218084,-400.0,0.00019997,2]
[360734684,1746957218114,-400.0,0.00019997,2]
[360734685,1746957218145,-400.0,0.00019997,2]
[360734686,1746957218174,-400.0,0.00019997,2]
[360734687,1746957218203,-416.79,0.00019997,2]
[360734688,1746957218234,-416.79,0.00019997,2]
[360734689,1746957218265,-400.0,0.00019997,2]
[360734690,1746957218296,-597.59,0.00019997,2]
[360734691,1746957218326,-631.31,0.00019997,2]
[360734692,1746957218355,-631.31,0.00019997,2]
[360734693,1746957218387,-450.01,0.00019997,2]
[360734694,1746957218418,-400.0,0.00019997,2]
[360734695,1746957218450,-516.22,0.00019997,2]
[360734696,1746957218484,-759.32,0.00019997,2]
[360734697,1746957218516,-936.96,0.00019997,2]
[360734698,1746957218548,-505.65,0.00019997,2]
[360734699,1746957218579,-505.65,0.00019997,2]
[360734700,1746957218612,-2635.21,0.00019997,2]
[360734701,1746957218643,-400.0,0.00019997,2]
[360734702,1746957218674,-400.0,0.00019997,2]
[360734703,1746957218705,-453.57,0.00019997,2]
[360734704,1746957218737,-705.21,0.00019997,2]
[360734705,1746957218768,-400.0,0.00019997,2]
[360734706,1746957218802,-373.64367219,0.00019997,2]
[360734707,1746957218833,-1036.79,0.00019997,2]
[360734708,1746957218877,-400.0,0.00019997,2]
[360734709,1746957218911,-400.0,0.00019997,2]
[360734710,1746957218942,-159.33,0.00019997,2]
[360734711,1746957218973,-400.0,0.00019997,2]
[360734712,1746957219006,-400.0,0.00019997,2]
[360734713,1746957219038,-468.54,0.00019997,2]
[360734714,1746957219070,-400.0,0.00019997,2]
[360734715,1746957219099,-400.0,0.00019997,2]
[360734716,1746957219131,-1673.13,0.00019997,2]
[360734717,1746957219162,-2143.76,0.00019997,2]
[360734718,1746957219193,-527.38,0.00019997,2]
[360734719,1746957219225,-527.38,0.00019997,2]
[360734720,1746957219258,-300.0,0.00019998,2]
[360734721,1746957219292,-660.58287395,0.00019998,2]
[360734722,1746957219325,-433.663732,0.00019998,2]
[360734723,1746957219358,-433.663739,0.00019998,2]
[360734724,1746957219392,-151.0,0.00019998,2]
[360734725,1746957219426,-151.0,0.00019998,2]
[360734726,1746957219461,-151.0,0.00019998,2]
[360734727,1746957219495,-200.283957,0.00019998,2]
[360734728,1746957219529,-151.0,0.00019998,2]
[360734729,1746957219561,-151.0,0.00019998,2]
[360734730,1746957219595,-588.746993,0.00019998,2]
[360734731,1746957219630,-588.746993,0.00019998,2]
[360734732,1746957219663,-588.746993,0.00019998,2]
[360734733,1746957219700,-588.747002,0.00019998,2]
[360734734,1746957219730,-400.0,0.00019998,2]
[360734735,1746957219762,-484.38432844,0.00019998,2]
[360734736,1746957219797,-151.0,0.00019998,2]
[360734737,1746957219831,-471.59,0.00019998,2]
[360734738,1746957219865,-471.59,0.00019998,2]
[360734739,1746957219896,-471.59,0.00019998,2]
[360734740,1746957219929,-471.59,0.00019998,2]
[360734741,1746957219958,-471.59,0.00019998,2]
[360734742,1746957219991,-471.59,0.00019998,2]
[360734743,1746957220025,-471.59,0.00019998,2]
[360734744,1746957220058,-471.66536742,0.00019998,2]
[360734745,1746957220088,-329.297613,0.00019998,2]
[360734746,1746957220122,-329.297619,0.00019998,2]
[360734747,1746957220153,-180.075916,0.00019998,2]
[360734748,1746957220183,-489.36,0.00019998,2]
[360734749,1746957220214,-709.51,0.00019998,2]
[360734750,1746957220247,-709.51,0.00019998,2]
[360734751,1746957220278,-709.51,0.00019998,2]
[360734752,1746957220310,-394.971222,0.00019998,2]
[360734753,1746957220345,-709.51,0.00019998,2]
[360734754,1746957220576,-709.51,0.00019998,2]
[360734755,1746957220624,-709.51,0.00019998,2]
[360734756,1746957220663,-709.51,0.00019998,2]
[360734757,1746957220699,-709.55035207,0.00019998,2]
[360734758,1746957220734,-394.971216,0.00019998,2]
[360734759,1746957220766,-768.75,0.00019998,2]
[360734760,1746957220803,-768.75,0.00019998,2]
[360734761,1746957220837,-768.75,0.00019998,2]
[360734762,1746957220871,-768.75,0.00019998,2]
[360734763,1746957220901,-768.75,0.00019998,2]
[360734764,1746957220931,-768.75,0.00019998,2]
[360734765,1746957220962,-768.75,0.00019998,2]
[360734766,1746957220991,-768.95197089,0.00019998,2]
[360734767,1746957221020,-166.365584,0.00019998,2]
[360734768,1746957221048,-166.365588,0.00019998,2]
[360734769,1746957221075,-400.0,0.00019998,2]
[360734770,1746957221103,-400.0,0.00019998,2]
[360734771,1746957221133,-400.0,0.00019998,2]
[360734772,1746957221161,-215.31,0.00019998,2]
[360734773,1746957221191,-400.0,0.00019998,2]
[360734774,1746957221221,-364.94851481,0.00019998,2]
[360734775,1746957221251,-558.61,0.00019998,2]
[360734776,1746957221282,-400.0,0.00019998,2]
[360734777,1746957221312,-558.61,0.00019998,2]
[360734778,1746957221342,-165.97953106,0.00019998,2]
[360734779,1746957221375,-238.650222,0.00019998,2]
[360734780,1746957221408,-238.650224,0.00019998,2]
[360734781,1746957221439,-151.0,0.00019998,2]
[360734782,1746957221471,-151.0,0.00019998,2]
[360734783,1746957221500,-637.48,0.00019998,2]
[360734784,1746957221530,-637.48,0.00019998,2]
[360734785,1746957221559,-152.857704,0.00019998,2]
[360734786,1746957221589,-400.0,0.00019998,2]
[360734787,1746957221618,-400.0,0.00019998,2]
[360734788,1746957221648,-245.969,0.00019998,2]
[360734789,1746957221679,-400.0,0.00019998,2]
[360734790,1746957221710,-400.0,0.00019998,2]
[360734791,1746957221740,-245.968996,0.00019998,2]
[360734792,1746957221771,-156.73953,0.00019998,2]
[360734793,1746957221803,-156.739534,0.00019998,2]
[360734794,1746957221834,-666.559909,0.00019998,2]
[360734795,1746957221863,-400.0,0.00019998,2]
[360734796,1746957221894,-666.559917,0.00019998,2]
[360734797,1746957221922,-400.0,0.00019998,2]
[360734798,1746957221952,-400.0,0.00019998,2]
[360734799,1746957221981,-400.0,0.00019998,2]
[360734800,1746957222011,-589.22,0.00019998,2]
[360734801,1746957222040,-589.22,0.00019998,2]
[360734802,1746957222070,-589.22,0.00019998,2]
[360734803,1746957222100,-400.0,0.00019998,2]
[360734804,1746957222131,-400.0,0.00019998,2]
[360734805,1746957222161,-400.0,0.00019998,2]
[360734806,1746957222191,-532.85,0.00019998,2]
[360734807,1746957222221,-532.85,0.00019998,2]
[360734808,1746957222251,-532.85,0.00019998,2]
[360734809,1746957222281,-400.0,0.00019998,2]
[360734810,1746957222312,-400.0,0.00019998,2]
[360734811,1746957222342,-400.0,0.00019998,2]
[360734812,1746957222371,-400.0,0.00019998,2]
[360734813,1746957222402,-150.0,0.00019998,2]
[360734814,1746957222433,-617.82,0.00019998,2]
[360734815,1746957222464,-617.82,0.00019998,2]
[360734816,1746957222494,-617.82,0.00019998,2]
[360734817,1746957222527,-28887.7,0.00019998,2]
[360734818,1746957222561,-28887.7,0.00019998,2]
[360734819,1746957222593,-28887.7,0.00019998,2]
[360734820,1746957222624,-400.0,0.00019998,2]
[360734821,1746957222657,-400.0,0.00019998,2]
[360734822,1746957222690,-768.15,0.00019998,2]
[360734823,1746957222722,-400.0,0.00019998,2]
[360734824,1746957222754,-768.15,0.00019998,2]
[360734825,1746957222787,-238.90143844,0.00019998,2]
[360734826,1746957222817,-400.0,0.00019998,2]
[360734827,1746957222847,-432.41046592,0.00019998,2]
[360734828,1746957222879,-370.32090181,0.00019998,2]
[360734829,1746957222910,-400.0,0.00019998,2]
[360734830,1746957222940,-400.0,0.00019998,2]
[360734831,1746957222970,-400.0,0.00019998,2]
[360734832,1746957223001,-903.0,0.00019998,2]
[360734833,1746957223031,-903.0,0.00019998,2]
[360734834,1746957223060,-400.0,0.00019998,2]
[360734835,1746957223089,-183.47257269,0.00019998,2]
[360734836,1746957223119,-400.0,0.00019998,2]
[360734837,1746957223148,-323.6,0.00019998,2]
[360734838,1746957223178,-400.0,0.00019998,2]
[360734839,1746957223209,-400.0,0.00019998,2]
[360734840,1746957223239,-676.82,0.00019998,2]
[360734841,1746957223269,-676.82,0.00019998,2]
[360734842,1746957223299,-676.82,0.00019998,2]
[360734843,1746957223330,-745.16,0.00019998,2]
[360734844,1746957223362,-745.16,0.00019998,2]
[360734845,1746957223392,-573.98,0.00019998,2]
[360734846,1746957223561,-573.98,0.00019998,2]
[360734847,1746957223594,-400.0,0.00019998,2]
[360734848,1746957223625,-162.75457447,0.00019998,2]
[360734849,1746957223655,-596.81,0.00019998,2]
[360734850,1746957223685,-596.81,0.00019998,2]
[360734851,1746957223715,-400.0,0.00019998,2]
[360734852,1746957223745,-400.0,0.00019998,2]
[360734853,1746957223776,-400.0,0.00019998,2]
[360734854,1746957223810,-400.0,0.00019998,2]
[360734855,1746957223841,-400.0,0.00019998,2]
[360734856,1746957223873,-408.02,0.00019998,2]
[360734857,1746957223905,-408.02,0.00019998,2]
[360734858,1746957223937,-195.1,0.00019998,2]
[360734859,1746957223969,-400.0,0.00019998,2]
[360734860,1746957224000,-400.0,0.00019998,2]
[360734861,1746957224033,-400.0,0.00019998,2]
[360734862,1746957224066,-400.0,0.00019998,2]
[360734863,1746957224098,-161.8,0.00019998,2]
[360734864,1746957224129,-416.79,0.00019998,2]
[360734865,1746957224160,-416.79,0.00019998,2]
[360734866,1746957224191,-368.46375514,0.00019998,2]
[360734867,1746957224225,-597.59,0.00019998,2]
[360734868,1746957224260,-597.59,0.00019998,2]
[360734869,1746957224293,-631.31,0.00019998,2]
[360734870,1746957224327,-631.31,0.00019998,2]
[360734871,1746957224362,-450.01,0.00019998,2]
[360734872,1746957224398,-450.01,0.00019998,2]
[360734873,1746957224434,-450.01,0.00019998,2]
[360734874,1746957224468,-400.0,0.00019998,2]
[360734875,1746957224501,-400.0,0.00019998,2]
[360734876,1746957224533,-400.0,0.00019998,2]
[360734877,1746957224565,-516.22,0.00019998,2]
[360734878,1746957224596,-516.22,0.00019998,2]
[360734879,1746957224626,-516.22,0.00019998,2]
[360734880,1746957224657,-759.32,0.00019998,2]
[360734881,1746957224687,-936.96,0.00019998,2]
[360734882,1746957224718,-759.32,0.00019998,2]
[360734883,1746957224748,-936.96,0.00019998,2]
[360734884,1746957224778,-759.32,0.00019998,2]
[360734886,1746957224814,-505.65,0.00019998,2]
[360734887,1746957224846,-505.65,0.00019998,2]
[360734888,1746957224876,-2635.21,0.00019998,2]
[360734889,1746957224908,-2635.21,0.00019998,2]
[360734890,1746957224939,-2635.21,0.00019998,2]
[360734891,1746957224972,-400.0,0.00019998,2]
[360734892,1746957225002,-400.0,0.00019998,2]
[360734893,1746957225033,-453.57,0.00019998,2]
[360734894,1746957225064,-453.57,0.00019998,2]
[360734895,1746957225097,-705.21,0.00019998,2]
[360734896,1746957225129,-705.21,0.00019998,2]
[360734897,1746957225160,-705.21,0.00019998,2]
[360734898,1746957225189,-1036.79,0.00019998,2]
[360734899,1746957225220,-1036.79,0.00019998,2]
[360734900,1746957225251,-1036.79,0.00019998,2]
[360734901,1746957225283,-400.0,0.00019998,2]
[360734902,1746957225314,-400.0,0.00019998,2]
[360734903,1746957225347,-400.0,0.00019998,2]
[360734904,1746957225380,-400.0,0.00019998,2]
[360734905,1746957225415,-400.0,0.00019998,2]
[360734906,1746957225446,-463.74,0.00019998,2]
[360734907,1746957225478,-400.0,0.00019998,2]
[360734908,1746957225509,-468.54,0.00019998,2]
[360734909,1746957225541,-468.54,0.00019998,2]
[360734910,1746957225572,-400.0,0.00019998,2]
[360734911,1746957225602,-400.0,0.00019998,2]
[360734912,1746957225633,-1673.13,0.00019998,2]
[360734913,1746957225664,-2143.76,0.00019998,2]
[360734914,1746957225694,-2143.76,0.00019998,2]
[360734915,1746957225723,-2143.76,0.00019998,2]
[360734916,1746957225752,-527.38,0.00019998,2]
[360734917,1746957225787,-527.38,0.00019998,2]
[360734918,1746957225821,-588401.62756423,0.00019999,2]
[360734919,1746957226201,400.0,0.00019888,2]
[360734920,1746957226254,400.0,0.00019891,2]
[360734921,1746957226332,400.0,0.00019891,2]
[360734922,1746957226376,400.0,0.00019891,2]
[360734923,1746957226416,400.0,0.00019887,2]
[360734924,1746957226462,400.0,0.00019888,2]
[360734925,1746957226501,400.0,0.00019893,2]
[360734926,1746957226552,400.0,0.00019889,2]
[360734927,1746957226595,400.0,0.00019887,2]
[360734928,1746957226632,7495.14233529,0.0001979,2]
[360734929,1746957226665,150454.89746471,0.0001979,2]
[360734930,1746957226731,-462.08,0.00019949,2]
[360734931,1746957226762,-151.0,0.00019972,2]
[360734932,1746957226793,-151.0,0.00019984,2]
[360734933,1746957226825,-182.758591,0.00019986,2]
[360734934,1746957226860,-666.0,0.00019998,2]
[360734935,1746957226892,-666.0,0.00019998,2]
[360734936,1746957226925,-328331.21812321,0.00019999,2]
[360734937,1746957226955,-500.0,0.00019999,2]
[360734938,1746957226983,-5777.58798359,0.00019999,2]
[360734939,1746957227012,-500.0,0.00019999,2]
[360734940,1746957227040,-500.0,0.00019999,2]
[360734941,1746957227068,-1108.05473387,0.00019999,5]
[360734942,1746957227096,-1108.05473387,0.00019999,5]
[360734943,1746957227124,-200.01900049,0.00019999,5]
[360734944,1746957227153,-33250.91977922,0.00019999,7]
[360734945,1746957227184,-150.0,0.00019999,2]
[360734946,1746957227216,-151.0,0.00019999,2]
[360734947,1746957227248,-151.0,0.00019999,2]
[360734948,1746957227283,-150.88455,0.00019999,5]
[360734949,1746957227316,-156.82339,0.00019999,5]
[360734950,1746957227346,-508.40591249,0.00019999,2]
[360734951,1746957227378,-558.61,0.00019999,2]
[360734952,1746957227411,-558.61,0.00019999,2]
[360734953,1746957227444,-558.61,0.00019999,2]
[360734954,1746957227479,-558.61,0.00019999,2]
[360734955,1746957227511,-558.61,0.00019999,2]
[360734956,1746957227543,-558.63030835,0.00019999,2]
[360734957,1746957227575,-637.48,0.00019999,2]
[360734958,1746957227606,-637.48,0.00019999,2]
[360734959,1746957227638,-637.48,0.00019999,2]
[360734960,1746957227670,-637.48,0.00019999,2]
[360734961,1746957227700,-637.48,0.00019999,2]
[360734962,1746957227729,-637.64288852,0.00019999,2]
[360734963,1746957227760,-400.0,0.00019999,2]
[360734964,1746957227792,-400.0,0.00019999,2]
[360734965,1746957227823,-400.0,0.00019999,2]
[360734966,1746957227856,-396.0422198,0.00019999,2]
[360734967,1746957227889,-400.0,0.00019999,2]
[360734968,1746957227920,-400.0,0.00019999,2]
[360734969,1746957227950,-400.0,0.00019999,2]
[360734970,1746957227978,-400.0,0.00019999,2]
[360734971,1746957228008,-280.73375215,0.00019999,2]
[360734972,1746957228039,-400.0,0.00019999,2]
[360734973,1746957228070,-451.66830785,0.00019999,2]
[360734974,1746957228103,-400.0,0.00019999,2]
[360734975,1746957228133,-400.0,0.00019999,2]
[360734976,1746957228166,-400.0,0.00019999,2]
[360734977,1746957228197,-249.5,0.00019999,2]
[360734978,1746957228230,-400.0,0.00019999,2]
[360734979,1746957228263,-300.5352,0.00019999,2]
[360734980,1746957228294,-532.85,0.00019999,2]
[360734981,1746957228326,-532.85,0.00019999,2]
[360734982,1746957228358,-532.85,0.00019999,2]
[360734983,1746957228392,-532.85,0.00019999,2]
[360734984,1746957228424,-532.93,0.00019999,2]
[360734985,1746957228456,-400.0,0.00019999,2]
[360734986,1746957228488,-400.0,0.00019999,2]
[360734987,1746957228522,-438.11519504,0.00019999,2]
[360734988,1746957228555,-517.13,0.00019999,2]
[360734989,1746957228595,-150.0,0.00019999,2]
[360734990,1746957228627,-150.0,0.00019999,2]
[360734991,1746957228656,-150.0,0.00019999,2]
[360734992,1746957228686,-150.0,0.00019999,2]
[360734993,1746957228845,-150.0,0.00019999,2]
[360734994,1746957228885,-617.82,0.00019999,2]
[360734995,1746957228919,-150.0,0.00019999,2]
[360734996,1746957228950,-617.82,0.00019999,2]
[360734997,1746957228980,-617.82,0.00019999,2]
[360734998,1746957229012,-150.0,0.00019999,2]
[360734999,1746957229043,-617.82,0.00019999,2]
[360735000,1746957229074,-617.85,0.00019999,2]
[360735001,1746957229103,-150.0,0.00019999,2]
[360735002,1746957229132,-150.0,0.00019999,2]
[360735003,1746957229165,-150.0,0.00019999,2]
[360735004,1746957229197,-150.0,0.00019999,2]
[360735005,1746957229232,-150.0,0.00019999,2]
[360735006,1746957229267,-150.0,0.00019999,2]
[360735007,1746957229302,-28887.7,0.00019999,2]
[360735008,1746957229344,-28887.7,0.00019999,2]
[360735009,1746957229380,-28887.7,0.00019999,2]
[360735010,1746957229414,-150.0,0.00019999,2]
[360735011,1746957229447,-28887.7,0.00019999,2]
[360735012,1746957229480,-150.0,0.00019999,2]
[360735013,1746957229513,-28887.7398,0.00019999,2]
[360735014,1746957229546,-150.0,0.00019999,2]
[360735015,1746957229577,-175.23980206,0.00019999,2]
[360735016,1746957229608,-222.2,0.00019999,2]
[360735017,1746957229641,-768.15,0.00019999,2]
[360735018,1746957229672,-768.15,0.00019999,2]
[360735019,1746957229704,-768.15,0.00019999,2]
[360735020,1746957229735,-768.15,0.00019999,2]
[360735021,1746957229769,-768.15,0.00019999,2]
[360735022,1746957229807,-768.21301294,0.00019999,2]
[360735023,1746957229841,-400.0,0.00019999,2]
[360735024,1746957229884,-400.0,0.00019999,2]
[360735025,1746957229918,-501.81358418,0.00019999,2]
[360735026,1746957229950,-903.0,0.00019999,2]
[360735027,1746957229981,-903.0,0.00019999,2]
[360735028,1746957230013,-903.0,0.00019999,2]
[360735029,1746957230049,-903.0,0.00019999,2]
[360735030,1746957230082,-903.0,0.00019999,2]
[360735031,1746957230113,-903.01009209,0.00019999,2]
[360735032,1746957230145,-400.0,0.00019999,2]
[360735033,1746957230176,-400.0,0.00019999,2]
[360735034,1746957230209,-400.0,0.00019999,2]
[360735035,1746957230240,-323.12005883,0.00019999,2]
[360735036,1746957230271,-676.82,0.00019999,2]
[360735037,1746957230300,-676.82,0.00019999,2]
[360735038,1746957230331,-676.82,0.00019999,2]
[360735039,1746957230361,-676.82,0.00019999,2]
[360735040,1746957230394,-676.9729578,0.00019999,2]
[360735041,1746957230425,-745.16,0.00019999,2]
[360735042,1746957230456,-745.16,0.00019999,2]
[360735043,1746957230488,-745.16,0.00019999,2]
[360735044,1746957230519,-745.16,0.00019999,2]
[360735045,1746957230551,-745.16,0.00019999,2]
[360735046,1746957230581,-745.20231444,0.00019999,2]
[360735048,1746957230611,-573.98,0.00019999,2]
[360735049,1746957230643,-573.98,0.00019999,2]
[360735050,1746957230673,-573.98,0.00019999,2]
[360735051,1746957230702,-573.98,0.00019999,2]
[360735052,1746957230730,-573.98,0.00019999,2]
[360735053,1746957230759,-574.15090183,0.00019999,2]
[360735054,1746957230791,-596.81,0.00019999,2]
[360735055,1746957230820,-596.81,0.00019999,2]
[360735056,1746957230851,-596.81,0.00019999,2]
[360735057,1746957230880,-596.81,0.00019999,2]
[360735058,1746957230908,-596.81,0.00019999,2]
[360735059,1746957230937,-596.8969081,0.00019999,2]
[360735060,1746957230966,-400.0,0.00019999,2]
[360735061,1746957230994,-400.0,0.00019999,2]
[360735062,1746957231024,-304.29,0.00019999,2]
[360735063,1746957231053,-400.0,0.00019999,2]
[360735064,1746957231083,-400.0,0.00019999,2]
[360735065,1746957231111,-303.16718471,0.00019999,2]
[360735066,1746957231141,-408.02,0.00019999,2]
[360735067,1746957231171,-408.02,0.00019999,2]
[360735068,1746957231200,-408.02,0.00019999,2]
[360735069,1746957231231,-408.02,0.00019999,2]
[360735070,1746957231262,-408.02,0.00019999,2]
[360735071,1746957231291,-408.16,0.00019999,2]
[360735072,1746957231322,-400.0,0.00019999,2]
[360735073,1746957231353,-211.33296474,0.00019999,2]
[360735074,1746957231387,-400.0,0.00019999,2]
[360735075,1746957231419,-286.13933331,0.00019999,2]
[360735076,1746957231450,-416.79,0.00019999,2]
[360735077,1746957231612,-416.79,0.00019999,2]
[360735078,1746957231647,-416.79,0.00019999,2]
[360735079,1746957231680,-416.79,0.00019999,2]
[360735080,1746957231712,-416.79,0.00019999,2]
[360735081,1746957231743,-416.92756641,0.00019999,2]
[360735082,1746957231776,-597.59,0.00019999,2]
[360735083,1746957231811,-597.59,0.00019999,2]
[360735085,1746957231844,-597.59,0.00019999,2]
[360735086,1746957231877,-597.59,0.00019999,2]
[360735087,1746957231908,-597.59,0.00019999,2]
[360735088,1746957231939,-597.74256059,0.00019999,2]
[360735089,1746957231970,-631.31,0.00019999,2]
[360735090,1746957232000,-631.31,0.00019999,2]
[360735091,1746957232030,-631.31,0.00019999,2]
[360735092,1746957232061,-631.31,0.00019999,2]
[360735093,1746957232093,-631.31,0.00019999,2]
[360735094,1746957232124,-631.49298754,0.00019999,2]
[360735095,1746957232156,-450.01,0.00019999,2]
[360735096,1746957232187,-450.01,0.00019999,2]
[360735097,1746957232218,-450.01,0.00019999,2]
[360735098,1746957232250,-450.01,0.00019999,2]
[360735099,1746957232282,-450.16021128,0.00019999,2]
[360735100,1746957232314,-400.0,0.00019999,2]
[360735101,1746957232346,-400.0,0.00019999,2]
[360735102,1746957232378,-291.95583862,0.00019999,2]
[360735103,1746957232410,-516.22,0.00019999,2]
[360735104,1746957232441,-516.22,0.00019999,2]
[360735105,1746957232472,-516.22,0.00019999,2]
[360735106,1746957232505,-516.22,0.00019999,2]
[360735107,1746957232539,-516.35234151,0.00019999,2]
[360735108,1746957232572,-936.96,0.00019999,2]
[360735109,1746957232608,-759.32,0.00019999,2]
[360735110,1746957232642,-936.96,0.00019999,2]
[360735111,1746957232676,-759.32,0.00019999,2]
[360735112,1746957232708,-936.96,0.00019999,2]
[360735113,1746957232742,-505.65,0.00019999,2]
[360735114,1746957232777,-759.32,0.00019999,2]
[360735115,1746957232817,-936.96,0.00019999,2]
[360735116,1746957232853,-505.65,0.00019999,2]
[360735117,1746957232890,-759.32,0.00019999,2]
[360735118,1746957232927,-936.96,0.00019999,2]
[360735119,1746957232964,-505.65,0.00019999,2]
[360735120,1746957233000,-759.3256994,0.00019999,2]
[360735121,1746957233034,-937.16,0.00019999,2]
[360735122,1746957233068,-505.65,0.00019999,2]
[360735123,1746957233101,-505.65,0.00019999,2]
[360735124,1746957233133,-505.66220915,0.00019999,2]
[360735125,1746957233168,-2635.21,0.00019999,2]
[360735126,1746957233202,-2635.21,0.00019999,2]
[360735127,1746957233238,-2635.21,0.00019999,2]
[360735128,1746957233275,-2635.21,0.00019999,2]
[360735129,1746957233312,-2635.42477211,0.00019999,2]
[360735130,1746957233349,-277.91883445,0.00019999,2]
[360735131,1746957233386,-453.57,0.00019999,2]
[360735132,1746957233423,-453.57,0.00019999,2]
[360735133,1746957233459,-453.57,0.00019999,2]
[360735134,1746957233497,-453.57,0.00019999,2]
[360735135,1746957233537,-453.57,0.00019999,2]
[360735136,1746957233574,-453.67,0.00019999,2]
[360735137,1746957233610,-705.21,0.00019999,2]
[360735138,1746957233646,-705.21,0.00019999,2]
[360735139,1746957233684,-705.21,0.00019999,2]
[360735140,1746957233722,-705.21,0.00019999,2]
[360735141,1746957233759,-705.43047546,0.00019999,2]